fUST/lending_fUST_20250204
["ID","MTS","AMOUNT","RATE_DAILY","PERIOD"]
[351598567,1738653044233,-868.99,0.00017397,2]
[351598568,1738653044242,-5462.88,0.00017397,2]
[351598569,1738653044252,-18734.95,0.000174,2]
[351598570,1738653044263,-1000.0,0.00017438,2]
[351598571,1738653044273,-420.0,0.00017492,2]
[351598572,1738653044282,-2000.0,0.000175,2]
[351598573,1738653044291,-500.0,0.00017533,2]
[351598574,1738653044301,-500.0,0.00017534,2]
[351598575,1738653044310,-711.07,0.00017534,2]
[351598576,1738653044319,-500.0,0.00017534,2]
[351598577,1738653044328,-688.91,0.00017534,2]
[351598578,1738653044338,-500.0,0.00017534,2]
[351598579,1738653044347,-500.0,0.00017534,2]
[351598580,1738653044356,-500.0,0.00017534,2]
[351598581,1738653044365,-1742.02,0.00017534,2]
[351598582,1738653044374,-585.01,0.00017534,2]
[351598583,1738653044383,-650.59,0.00017534,2]
[351598584,1738653044393,-500.0,0.00017534,2]
[351598585,1738653044402,-3472.72,0.00017534,2]
[351598586,1738653044412,-2545.92,0.00017534,2]
[351598587,1738653044421,-1100.22,0.00017534,2]
[351598588,1738653044431,-500.0,0.00017534,2]
[351598589,1738653044539,-696.57,0.00017534,2]
[351598590,1738653044551,-840.9,0.00017534,2]
[351598591,1738653044561,-1701.05,0.00017534,2]
[351598592,1738653044571,-666.96,0.00017534,2]
[351598593,1738653044581,-6091.39,0.00017534,2]
[351598594,1738653044592,-2741.31,0.00017534,2]
[351598595,1738653044602,-1024.87,0.00017534,2]
[351598596,1738653044611,-847.7,0.00017534,2]
[351598597,1738653044621,-16099.78,0.00017534,2]
[351598598,1738653044630,-500.0,0.00017534,2]
[351598599,1738653044640,-559.49,0.00017534,2]
[351598600,1738653044649,-953.65,0.00017534,2]
[351598601,1738653044659,-621.14,0.00017534,2]
[351598602,1738653044668,-565.43,0.00017534,2]
[351598603,1738653044678,-775.64,0.00017534,2]
[351598604,1738653044687,-500.0,0.00017534,2]
[351598605,1738653044696,-1135.73,0.00017534,2]
[351598606,1738653044706,-500.0,0.00017534,2]
[351598607,1738653044715,-1679.45,0.00017534,2]
[351598608,1738653044724,-500.0,0.00017534,2]
[351598609,1738653044734,-2063.87,0.00017534,2]
[351598610,1738653044744,-1090.8,0.00017534,2]
[351598611,1738653044753,-1175.84,0.00017534,2]
[351598612,1738653044766,-5316.78,0.00017534,2]
[351598613,1738653044776,-1053.58,0.00017534,2]
[351598614,1738653044784,-156.18667903,0.00017534,2]
[351598615,1738653044925,-500.0,0.00016849,2]
[351598616,1738653044934,-154.89449555,0.00016986,2]
[351598617,1738653044946,-318.63610174,0.00016986,2]
[351598618,1738653045091,284.53,0.00010959,2]
[351598619,1738653045103,-26.46940271,0.00016986,2]
[351598620,1738653045112,-500.0,0.00017123,2]
[351598621,1738653045122,-1685.53,0.0001726,2]
[351598622,1738653045132,-500.0,0.0001726,2]
[351598623,1738653045141,-1685.53,0.00017397,2]
[351598624,1738653045150,-500.0,0.00017397,2]
[351598625,1738653045159,-631.85332097,0.00017534,2]
[351598626,1738653045168,-500.0,0.00017534,2]
[351598627,1738653045177,-500.0,0.00017534,2]
[351598628,1738653045187,-999.29,0.00017534,2]
[351598629,1738653045196,-833.12,0.00017534,2]
[351598630,1738653045206,-1978.31,0.00017534,2]
[351598631,1738653045215,-1141.9,0.00017534,2]
[351598632,1738653045225,-500.0,0.00017534,2]
[351598633,1738653045234,-868.99,0.00017534,2]
[351598634,1738653045244,-5462.88,0.00017534,2]
[351598635,1738653045254,-1685.53,0.00017534,2]
[351598636,1738653045264,-500.0,0.00017534,2]
[351598637,1738653045273,-6214.2899897,0.00017535,2]
[351598710,1738653055045,237.11,0.00010959,2]
[351598711,1738653063591,217.619882,0.00013973,2]
[351598712,1738653065805,332.76,0.00010959,2]
[351598713,1738653076513,277.3,0.00010959,2]
[351598715,1738653084171,1200.0,0.0001315,2]
[351598716,1738653085799,1200.0,0.0001452,2]
[351598717,1738653087019,231.08,0.00010959,2]
[351598718,1738653097521,192.57,0.00010959,2]
[351598719,1738653124676,160.47,0.00010959,2]
[351598720,1738653135315,802.39,0.00010959,2]
[351598723,1738653628555,845.17,0.00010959,2]
[351598724,1738653639071,262.52,0.00010959,2]
[351598726,1738653649573,218.77,0.00010959,2]
[351598727,1738653670509,182.3,0.00010959,2]
[351598729,1738653681052,151.92,0.00010959,2]
[351598730,1738653702014,759.63,0.00010959,2]
[351598736,1738654029649,1000.0,0.0001315,2]
[351598737,1738654031235,1000.0,0.0001452,2]
[351598747,1738654098682,215.247414,0.00013973,2]
[351598749,1738654134560,233.1223222,0.00013699,2]
[351598759,1738654214299,6106.899999,0.0002045,120]
[351598803,1738654232177,-165.37,0.00015505,2]
[351598805,1738654232187,-300.0,0.00015514,2]
[351598807,1738654232196,-11289.25047301,0.00015515,2]
[351598809,1738654232209,-764.42908236,0.00015515,2]
[351598823,1738654232353,-5288.27824663,0.00015515,2]
[351598827,1738654232364,-945.71791987,0.00015515,2]
[351598938,1738654237972,-3139.9,0.00015515,2]
[351598941,1738654237984,-3472.42427813,0.00015515,2]
[351598943,1738654237993,-1000.0,0.0001589,2]
[351598945,1738654238004,-165.37,0.0001642,2]
[351598947,1738654238013,-165.37,0.0001642,2]
[351598949,1738654238022,-142404.14697406,0.0001643,2]
[351598951,1738654238031,-499.0,0.00016437,2]
[351598952,1738654238040,-500.0,0.00016438,2]
[351598955,1738654238050,-500.0,0.00016438,2]
[351598957,1738654238060,-500.0,0.00016438,2]
[351598959,1738654238069,-500.0,0.00016438,2]
[351598961,1738654238079,-500.0,0.00016438,2]
[351598963,1738654238088,-500.0,0.00016438,2]
[351598965,1738654238097,-500.0,0.00016438,2]
[351598967,1738654238106,-500.0,0.00016438,2]
[351598970,1738654238115,-500.0,0.00016438,2]
[351598973,1738654238124,-500.0,0.00016438,2]
[351598976,1738654238133,-580.12917351,0.00016438,2]
[351598978,1738654238143,-500.0,0.00016438,2]
[351598980,1738654238152,-500.0,0.00016438,2]
[351598982,1738654238161,-500.0,0.00016438,2]
[351598986,1738654238181,-500.0,0.00016438,2]
[351598988,1738654238192,-507.28356888,0.00016438,2]
[351598990,1738654238201,-500.0,0.00016438,2]
[351598992,1738654238211,-500.0,0.00016438,2]
[351598994,1738654238221,-500.0,0.00016438,2]
[351598996,1738654238231,-500.0,0.00016438,2]
[351598998,1738654238242,-500.0,0.00016438,2]
[351599000,1738654238255,-479.0,0.00016438,2]
[351599002,1738654238265,-500.0,0.00016438,2]
[351599004,1738654238275,-500.0,0.00016438,2]
[351599006,1738654238284,-500.0,0.00016438,2]
[351599008,1738654238294,-500.0,0.00016438,2]
[351599010,1738654238303,-500.0,0.00016438,2]
[351599012,1738654238313,-500.0,0.00016438,2]
[351599014,1738654238322,-500.0,0.00016438,2]
[351599016,1738654238332,-504.51334697,0.00016438,2]
[351599018,1738654238342,-501.49015266,0.00016438,2]
[351599020,1738654238351,-500.0,0.00016438,2]
[351599021,1738654238361,-500.0,0.00016438,2]
[351599023,1738654238371,-500.0,0.00016438,2]
[351599025,1738654238382,-500.0,0.00016438,2]
[351599027,1738654238392,-500.0,0.00016438,2]
[351599029,1738654238402,-500.0,0.00016438,2]
[351599032,1738654238412,-500.0,0.00016438,2]
[351599034,1738654238422,-500.0,0.00016438,2]
[351599036,1738654238432,-501.56098355,0.00016438,2]
[351599038,1738654238442,-500.0,0.00016438,2]
[351599040,1738654238452,-500.0,0.00016438,2]
[351599042,1738654238463,-500.0,0.00016438,2]
[351599044,1738654238473,-500.0,0.00016438,2]
[351599046,1738654238483,-505.11052012,0.00016438,2]
[351599048,1738654238493,-500.0,0.00016438,2]
[351599050,1738654238505,-509.75219872,0.00016438,2]
[351599052,1738654238515,-500.0,0.00016438,2]
[351599054,1738654238524,-500.0,0.00016438,2]
[351599056,1738654238534,-500.0,0.00016438,2]
[351599057,1738654238544,-200.0,0.00016438,2]
[351599058,1738654238554,-500.0,0.00016438,2]
[351599059,1738654238564,-500.0,0.00016438,2]
[351599060,1738654238573,-500.0,0.00016438,2]
[351599061,1738654238583,-502.57495816,0.00016438,2]
[351599062,1738654238593,-500.0,0.00016438,2]
[351599063,1738654238603,-509.33886708,0.00016438,2]
[351599064,1738654238612,-500.0,0.00016438,2]
[351599065,1738654238622,-500.0,0.00016438,2]
[351599066,1738654238632,-500.0,0.00016438,2]
[351599067,1738654238642,-501.57866596,0.00016438,2]
[351599068,1738654238651,-500.0,0.00016438,2]
[351599069,1738654238661,-500.0,0.00016438,2]
[351599070,1738654238671,-500.0,0.00016438,2]
[351599071,1738654238681,-504.57583681,0.00016438,2]
[351599072,1738654238690,-505.28600177,0.00016438,2]
[351599073,1738654238700,-500.0,0.00016438,2]
[351599074,1738654238709,-500.0,0.00016438,2]
[351599075,1738654238719,-502.74232185,0.00016438,2]
[351599076,1738654238728,-500.0,0.00016438,2]
[351599077,1738654238738,-500.0,0.00016438,2]
[351599078,1738654238748,-500.0,0.00016438,2]
[351599079,1738654238758,-398.58973083,0.00016438,2]
[351599080,1738654238769,-501.01496092,0.00016438,2]
[351599081,1738654238779,-500.0,0.00016438,2]
[351599082,1738654238788,-500.0,0.00016438,2]
[351599083,1738654238798,-502.26685317,0.00016438,2]
[351599084,1738654238809,-415.53991511,0.00016438,2]
[351599085,1738654238819,-500.0,0.00016438,2]
[351599086,1738654238829,-500.0,0.00016438,2]
[351599087,1738654238839,-501.92872497,0.00016438,2]
[351599088,1738654238850,-501.16418035,0.00016438,2]
[351599089,1738654238860,-500.0,0.00016438,2]
[351599090,1738654238870,-500.0,0.00016438,2]
[351599091,1738654238880,-237.61177019,0.00016438,2]
[351599092,1738654238891,-500.0,0.00016438,2]
[351599093,1738654238902,-373.72105351,0.00016438,2]
[351599094,1738654238916,-500.0,0.00016438,2]
[351599095,1738654238927,-500.0,0.00016438,2]
[351599096,1738654238937,-500.0,0.00016438,2]
[351599097,1738654238947,-500.0,0.00016438,2]
[351599098,1738654238958,-392.939008,0.00016438,2]
[351599099,1738654238969,-500.0,0.00016438,2]
[351599100,1738654238978,-500.0,0.00016438,2]
[351599101,1738654238991,-500.0,0.00016438,2]
[351599102,1738654239001,-690.42,0.00016438,2]
[351599103,1738654239015,-696.94,0.00016438,2]
[351599104,1738654239026,-500.0,0.00016438,2]
[351599105,1738654239036,-500.0,0.00016438,2]
[351599106,1738654239046,-154.07922469,0.00016438,2]
[351599107,1738654239056,-500.0,0.00016438,2]
[351599108,1738654239067,-500.0,0.00016438,2]
[351599109,1738654239077,-500.0,0.00016438,2]
[351599110,1738654239087,-500.0,0.00016438,2]
[351599111,1738654239097,-500.0,0.00016438,2]
[351599112,1738654239107,-500.0,0.00016438,2]
[351599113,1738654239117,-500.0,0.00016438,2]
[351599114,1738654239126,-500.0,0.00016438,2]
[351599115,1738654239136,-557.09,0.00016438,2]
[351599116,1738654239146,-500.0,0.00016438,2]
[351599117,1738654239156,-500.0,0.00016438,2]
[351599118,1738654239166,-500.0,0.00016438,2]
[351599119,1738654239175,-500.0,0.00016438,2]
[351599120,1738654239186,-500.0,0.00016438,2]
[351599121,1738654239196,-500.0,0.00016438,2]
[351599122,1738654239206,-500.0,0.00016438,2]
[351599123,1738654239216,-500.0,0.00016438,2]
[351599124,1738654239226,-500.0,0.00016438,2]
[351599125,1738654239235,-500.0,0.00016438,2]
[351599126,1738654239246,-500.0,0.00016438,2]
[351599127,1738654239257,-500.0,0.00016438,2]
[351599128,1738654239268,-1742.02,0.00016438,2]
[351599129,1738654239278,-500.0,0.00016438,2]
[351599130,1738654239289,-500.0,0.00016438,2]
[351599131,1738654239299,-500.0,0.00016438,2]
[351599132,1738654239309,-500.0,0.00016438,2]
[351599133,1738654239319,-500.0,0.00016438,2]
[351599134,1738654239329,-500.0,0.00016438,2]
[351599135,1738654239340,-500.0,0.00016438,2]
[351599136,1738654239351,-671.42,0.00016438,2]
[351599137,1738654239361,-5342.28,0.00016438,2]
[351599138,1738654239372,-1115.37,0.00016438,2]
[351599139,1738654239383,-298.25359222,0.00016438,2]
[351599140,1738654239393,-500.0,0.00016438,2]
[351599141,1738654239403,-853.61,0.00016438,2]
[351599142,1738654239414,-500.0,0.00016438,2]
[351599143,1738654239425,-1508.44,0.00016438,2]
[351599144,1738654239434,-500.0,0.00016438,2]
[351599145,1738654239444,-500.0,0.00016438,2]
[351599146,1738654239454,-504.50185385,0.00016438,2]
[351599147,1738654239464,-3486.01,0.00016438,2]
[351599149,1738654239474,-500.0,0.00016438,2]
[351599150,1738654239484,-500.0,0.00016438,2]
[351599151,1738654239494,-500.0,0.00016438,2]
[351599152,1738654239506,-1152.35,0.00016438,2]
[351599153,1738654239516,-500.0,0.00016438,2]
[351599154,1738654239527,-500.0,0.00016438,2]
[351599155,1738654239537,-882.57,0.00016438,2]
[351599156,1738654239547,-696.57,0.00016438,2]
[351599157,1738654239557,-500.0,0.00016438,2]
[351599158,1738654239567,-6513.99,0.00016438,2]
[351599159,1738654239578,-500.0,0.00016438,2]
[351599160,1738654239589,-1794.92,0.00016438,2]
[351599161,1738654239599,-500.0,0.00016438,2]
[351599162,1738654239611,-572.97726561,0.00016438,2]
[351599163,1738654239621,-500.0,0.00016438,2]
[351599164,1738654239631,-500.0,0.00016438,2]
[351599165,1738654239641,-1071.07,0.00016438,2]
[351599166,1738654239652,-500.0,0.00016438,2]
[351599167,1738654239661,-500.0,0.00016438,2]
[351599168,1738654239671,-500.0,0.00016438,2]
[351599169,1738654239682,-896.46,0.00016438,2]
[351599170,1738654239691,-500.0,0.00016438,2]
[351599171,1738654239701,-559.49,0.00016438,2]
[351599173,1738654239711,-500.0,0.00016438,2]
[351599174,1738654239720,-500.0,0.00016438,2]
[351599176,1738654239730,-500.0,0.00016438,2]
[351599178,1738654239740,-500.0,0.00016438,2]
[351599180,1738654239749,-500.0,0.00016438,2]
[351599181,1738654239761,-500.0,0.00016438,2]
[351599182,1738654239771,-708.63,0.00016438,2]
[351599183,1738654239781,-500.0,0.00016438,2]
[351599184,1738654239791,-500.0,0.00016438,2]
[351599186,1738654239801,-500.0,0.00016438,2]
[351599188,1738654239810,-500.0,0.00016438,2]
[351599190,1738654239821,-500.0,0.00016438,2]
[351599192,1738654239830,-500.0,0.00016438,2]
[351599194,1738654239840,-500.0,0.00016438,2]
[351599196,1738654239850,-500.0,0.00016438,2]
[351599198,1738654239860,-525.4226084,0.00016438,2]
[351599200,1738654239870,-500.0,0.00016438,2]
[351599202,1738654239879,-500.0,0.00016438,2]
[351599204,1738654239889,-500.0,0.00016438,2]
[351599206,1738654239903,-519.25564087,0.00016438,2]
[351599207,1738654239917,-591.95435161,0.00016438,2]
[351599208,1738654239927,-817.3,0.00016438,2]
[351599209,1738654239937,-500.0,0.00016438,2]
[351599210,1738654239948,-16973.54,0.00016438,2]
[351599211,1738654239958,-500.0,0.00016438,2]
[351599212,1738654239968,-500.0,0.00016438,2]
[351599213,1738654239977,-515.63728089,0.00016438,2]
[351599214,1738654239987,-1156.56,0.00016438,2]
[351599215,1738654239996,-2801.27,0.00016438,2]
[351599217,1738654240005,-500.0,0.00016438,2]
[351599218,1738654240014,-500.0,0.00016438,2]
[351599219,1738654240023,-974.48,0.00016438,2]
[351599220,1738654240033,-540.88,0.00016438,2]
[351599221,1738654240041,-473.40930979,0.00016438,2]
[351599222,1738654240050,-500.0,0.00016438,2]
[351599223,1738654240060,-500.0,0.00016438,2]
[351599224,1738654240069,-500.0,0.00016438,2]
[351599225,1738654240078,-586.27,0.00016438,2]
[351599226,1738654240087,-500.0,0.00016438,2]
[351599227,1738654240097,-500.0,0.00016438,2]
[351599228,1738654240106,-500.0,0.00016438,2]
[351599229,1738654240115,-500.0,0.00016438,2]
[351599230,1738654240124,-500.0,0.00016438,2]
[351599231,1738654240133,-500.0,0.00016438,2]
[351599232,1738654240142,-500.0,0.00016438,2]
[351599233,1738654240152,-500.0,0.00016438,2]
[351599234,1738654240161,-506.77975931,0.00016438,2]
[351599235,1738654240171,-1053.58,0.00016438,2]
[351599236,1738654240180,-2138.47,0.00016438,2]
[351599237,1738654240380,-319.07390484,0.00016438,2]
[351599238,1738654240391,-500.0,0.00016438,2]
[351599239,1738654240401,-500.0,0.00016438,2]
[351599240,1738654240411,-5474.63,0.00016438,2]
[351599241,1738654240421,-500.0,0.00016438,2]
[351599242,1738654240431,-840.08,0.00016438,2]
[351599243,1738654240441,-500.0,0.00016438,2]
[351599244,1738654240450,-1217.5,0.00016438,2]
[351599245,1738654240459,-500.0,0.00016438,2]
[351599246,1738654240469,-978.48,0.00016438,2]
[351599247,1738654240479,-500.0,0.00016438,2]
[351599248,1738654240489,-500.0,0.00016438,2]
[351599249,1738654240499,-1743.5,0.00016438,2]
[351599250,1738654240511,-500.0,0.00016438,2]
[351599251,1738654240520,-500.0,0.00016438,2]
[351599252,1738654240529,-1976.65,0.00016438,2]
[351599253,1738654240540,-500.0,0.00016438,2]
[351599254,1738654240549,-1132.46,0.00016438,2]
[351599255,1738654240558,-500.0,0.00016438,2]
[351599256,1738654240568,-500.0,0.00016438,2]
[351599257,1738654240577,-2545.92,0.00016438,2]
[351599258,1738654240587,-500.0,0.00016438,2]
[351599259,1738654240597,-803.38,0.00016438,2]
[351599260,1738654240607,-500.0,0.00016438,2]
[351599261,1738654240616,-500.0,0.00016438,2]
[351599262,1738654240625,-500.0,0.00016438,2]
[351599263,1738654240633,-500.0,0.00016438,2]
[351599264,1738654240643,-500.0,0.00016438,2]
[351599265,1738654240652,-600.5844107,0.00016438,2]
[351599266,1738654240661,-500.0,0.00016438,2]
[351599267,1738654240670,-500.0,0.00016438,2]
[351599268,1738654240679,-500.0,0.00016438,2]
[351599269,1738654240688,-583.41026086,0.00016473,2]
[351599270,1738654240698,-500.0,0.00016473,2]
[351599271,1738654240708,-202.10579003,0.000165,2]
[351599272,1738654240717,-130936.13248533,0.000165,2]
[351599273,1738654240727,-500.0,0.00016575,2]
[351599274,1738654240736,-500.0,0.00016575,2]
[351599275,1738654240746,-500.0,0.00016575,2]
[351599276,1738654240756,-500.0,0.00016575,2]
[351599277,1738654240765,-500.0,0.00016575,2]
[351599278,1738654240774,-500.0,0.00016575,2]
[351599279,1738654240784,-500.0,0.00016575,2]
[351599280,1738654240792,-500.0,0.00016575,2]
[351599281,1738654240801,-640.53785926,0.00016575,2]
[351599282,1738654240810,-403.26758279,0.00016575,2]
[351599283,1738654240819,-500.0,0.00016575,2]
[351599284,1738654240829,-422.59193917,0.00016575,2]
[351599285,1738654240838,-500.0,0.00016575,2]
[351599286,1738654240847,-378.27194955,0.00016575,2]
[351599287,1738654240857,-500.0,0.00016575,2]
[351599288,1738654240866,-500.0,0.00016575,2]
[351599289,1738654240876,-500.0,0.00016575,2]
[351599290,1738654240885,-690.42,0.00016575,2]
[351599291,1738654240895,-696.94,0.00016575,2]
[351599292,1738654240907,-500.0,0.00016575,2]
[351599293,1738654240917,-500.0,0.00016575,2]
[351599294,1738654240926,-557.09,0.00016575,2]
[351599295,1738654240936,-500.0,0.00016575,2]
[351599296,1738654240947,-500.0,0.00016575,2]
[351599297,1738654240956,-500.0,0.00016575,2]
[351599298,1738654240966,-500.0,0.00016575,2]
[351599299,1738654240975,-500.0,0.00016575,2]
[351599300,1738654240985,-1742.02,0.00016575,2]
[351599301,1738654240995,-500.0,0.00016575,2]
[351599302,1738654241007,-671.42,0.00016575,2]
[351599303,1738654241016,-5342.28,0.00016575,2]
[351599304,1738654241026,-1115.37,0.00016575,2]
[351599305,1738654241034,-853.61,0.00016575,2]
[351599306,1738654241043,-253.4578404,0.00016575,2]
[351599307,1738654241052,-1508.44,0.00016575,2]
[351599308,1738654241062,-500.0,0.00016575,2]
[351599309,1738654241071,-184.83042232,0.00016575,2]
[351599310,1738654241080,-3486.01,0.00016575,2]
[351599311,1738654241090,-500.0,0.00016575,2]
[351599312,1738654241106,-500.0,0.00016575,2]
[351599313,1738654241115,-500.0,0.00016575,2]
[351599314,1738654241124,-1152.35,0.00016575,2]
[351599315,1738654241134,-882.57,0.00016575,2]
[351599316,1738654241143,-696.57,0.00016575,2]
[351599317,1738654241152,-500.0,0.00016575,2]
[351599318,1738654241161,-6513.99,0.00016575,2]
[351599319,1738654241171,-1794.92,0.00016575,2]
[351599320,1738654241181,-500.0,0.00016575,2]
[351599321,1738654241190,-500.0,0.00016575,2]
[351599322,1738654241199,-1071.07,0.00016575,2]
[351599323,1738654241208,-500.0,0.00016575,2]
[351599324,1738654241217,-500.0,0.00016575,2]
[351599325,1738654241225,-896.46,0.00016575,2]
[351599326,1738654241234,-500.0,0.00016575,2]
[351599327,1738654241244,-559.49,0.00016575,2]
[351599328,1738654241253,-500.0,0.00016575,2]
[351599329,1738654241262,-708.63,0.00016575,2]
[351599330,1738654241271,-500.0,0.00016575,2]
[351599331,1738654241280,-500.0,0.00016575,2]
[351599332,1738654241289,-500.0,0.00016575,2]
[351599333,1738654241298,-817.3,0.00016575,2]
[351599334,1738654241307,-500.0,0.00016575,2]
[351599335,1738654241317,-16973.54,0.00016575,2]
[351599336,1738654241326,-500.0,0.00016575,2]
[351599337,1738654241336,-1156.56,0.00016575,2]
[351599338,1738654241345,-2801.27,0.00016575,2]
[351599339,1738654241354,-500.0,0.00016575,2]
[351599340,1738654241364,-500.0,0.00016575,2]
[351599341,1738654241372,-974.48,0.00016575,2]
[351599342,1738654241381,-500.0,0.00016575,2]
[351599343,1738654241391,-500.0,0.00016575,2]
[351599344,1738654241400,-483.6855893,0.00016575,2]
[351599345,1738654241410,-586.27,0.00016575,2]
[351599346,1738654241419,-500.0,0.00016575,2]
[351599347,1738654241428,-500.0,0.00016575,2]
[351599348,1738654241437,-500.0,0.00016575,2]
[351599349,1738654241447,-500.0,0.00016575,2]
[351599350,1738654241456,-500.0,0.00016575,2]
[351599351,1738654241465,-500.0,0.00016575,2]
[351599352,1738654241474,-1053.58,0.00016575,2]
[351599353,1738654241483,-2138.47,0.00016575,2]
[351599354,1738654241493,-319.04074556,0.00016575,2]
[351599355,1738654241502,-500.0,0.00016575,2]
[351599356,1738654241514,-5474.63,0.00016575,2]
[351599357,1738654241524,-500.0,0.00016575,2]
[351599358,1738654241533,-840.08,0.00016575,2]
[351599359,1738654241542,-500.0,0.00016575,2]
[351599360,1738654241552,-1217.5,0.00016575,2]
[351599361,1738654241561,-500.0,0.00016575,2]
[351599362,1738654241571,-978.48,0.00016575,2]
[351599363,1738654241580,-500.0,0.00016575,2]
[351599364,1738654241589,-500.0,0.00016575,2]
[351599365,1738654241599,-1743.5,0.00016575,2]
[351599366,1738654241609,-500.0,0.00016575,2]
[351599367,1738654241618,-500.0,0.00016575,2]
[351599368,1738654241627,-1976.65,0.00016575,2]
[351599369,1738654241637,-500.0,0.00016575,2]
[351599370,1738654241646,-1132.46,0.00016575,2]
[351599371,1738654241656,-500.0,0.00016575,2]
[351599372,1738654241665,-2545.92,0.00016575,2]
[351599373,1738654241674,-803.38,0.00016575,2]
[351599374,1738654241684,-500.0,0.00016575,2]
[351599375,1738654241694,-370.10003,0.00016575,2]
[351599376,1738654241704,-280.12742006,0.00016575,2]
[351599377,1738654241713,-500.0,0.00016575,2]
[351599378,1738654241723,-500.0,0.00016575,2]
[351599379,1738654241732,-500.0,0.00016575,2]
[351599380,1738654241741,-394.0,0.00016612,2]
[351599381,1738654241751,-275577.83158067,0.0001666,2]
[351599382,1738654241770,-182202.81747733,0.0001666,2]
[351599383,1738654241781,-32984.38013117,0.0001666,2]
[351599384,1738654242125,-500.0,0.00016438,2]
[351599385,1738654242135,-500.0,0.00016575,2]
[351599386,1738654242144,-500.0,0.00016575,2]
[351599387,1738654242154,-258.15974404,0.0001666,2]
[351599422,1738654243738,-7461.05671462,0.0001666,2]
[351599426,1738654243750,-6261.28170294,0.0001666,2]
[351599429,1738654243764,-97087.778989,0.0001666,2]
[351599433,1738654243775,-1739.26615875,0.0001666,2]
[351599471,1738654246139,-214.25987775,0.00016337,2]
[351599472,1738654246148,-500.0,0.00016438,2]
[351599473,1738654246158,-500.0,0.00016575,2]
[351599474,1738654246167,-37286.38193021,0.0001666,2]
[351599475,1738654246198,-669.0,0.0001666,2]
[351599476,1738654246210,-394.0,0.0001666,2]
[351599477,1738654246221,-605.0,0.0001666,2]
[351599478,1738654246233,-10457.8704635,0.0001666,2]
[351599479,1738654246244,-9999.99999999,0.0001666,2]
[351599480,1738654246260,-2229.8,0.0001666,2]
[351599527,1738654320879,800.0,0.00014246,2]
[351599530,1738654706833,205.0,0.0002,120]
[351599531,1738654732408,154.0,0.0002,120]
[351599534,1738654935909,212.971982,0.00013973,2]
[351599537,1738655073664,1000.0,0.0002,120]
[351599538,1738655101634,233.122321,0.00013699,2]
[351599539,1738655111877,1000.0,0.00016,16]
[351599540,1738655117057,1000.0,0.00016,10]
[351599547,1738655401356,24900.0,0.00014836,2]
[351599595,1738655432453,-258.36608815,0.00015412,2]
[351599597,1738655432463,-300.0,0.0001551,2]
[351599599,1738655432473,-1610.28391681,0.00015511,2]
[351599601,1738655432486,-3435.28023237,0.00015511,2]
[351599603,1738655432498,-468.04,0.00015511,2]
[351599617,1738655432621,-2126.83669878,0.00015511,2]
[351599619,1738655432635,-40032.89868804,0.00015511,2]
[351599621,1738655432644,-800.0,0.00015616,2]